bitfinex/quotes_BTCUSD_20250204
["timestamp","ask_amount","ask_price","bid_price","bid_amount"]
[1738710205681,0.25588106,97722.0,97721.0,0.01]
[1738710205856,0.10238506,97722.0,97721.0,0.01]
[1738710206509,0.25588106,97722.0,97721.0,0.01]
[1738710207104,0.204622,97741.0,97730.0,0.01]
[1738710207318,0.22057511,97755.0,97732.0,0.01]
[1738710207319,0.153479,97734.0,97732.0,0.01]
[1738710207524,0.204633,97736.0,97732.0,0.01]
[1738710207726,0.204628,97738.0,97732.0,0.01]
[1738710207934,0.153473,97738.0,97732.0,0.01]
[1738710208113,0.153474,97736.0,97732.0,0.01]
[1738710208336,0.1535838,97735.0,97732.0,0.01]
[1738710208853,0.1535838,97735.0,97732.0,0.02889207]
[1738710209063,0.1535838,97735.0,97732.0,0.02989207]
[1738710209223,0.01124029,97733.0,97732.0,0.02989207]
[1738710209434,0.0001068,97733.0,97732.0,0.02989207]
[1738710210040,0.0001068,97733.0,97732.0,0.011]
[1738710210457,0.0001068,97733.0,97732.0,0.01]
[1738710210837,0.0001068,97733.0,97732.0,0.011]
[1738710211398,0.0001068,97733.0,97732.0,0.01]
[1738710211736,0.0001068,97733.0,97732.0,0.011]
[1738710211937,0.1535858,97733.0,97732.0,0.011]
[1738710212352,0.1535858,97733.0,97732.0,0.012]
[1738710212815,0.20476566,97733.0,97732.0,0.012]
[1738710213059,0.54841133,97733.0,97732.0,0.002]
[1738710213495,0.60979133,97733.0,97732.0,0.002]
[1738710213695,0.45631233,97733.0,97717.0,0.08173315]
[1738710213932,0.15352,97707.0,97696.0,0.08173315]
[1738710214159,0.153524,97704.0,97696.0,0.08173315]
[1738710214418,0.25590906,97704.0,97696.0,0.08173315]
[1738710216061,0.25690906,97704.0,97697.0,0.01]
[1738710216429,0.25890906,97704.0,97697.0,0.01]
[1738710216766,0.25890906,97704.0,97696.0,0.08173315]
[1738710217104,0.25890906,97704.0,97697.0,0.01]
[1738710218482,0.25890906,97704.0,97696.0,0.08173315]
[1738710219041,0.47028906,97704.0,97684.0,0.08173315]
[1738710219258,0.90218378,97704.0,97684.0,0.08173315]
[1738710219458,0.364922,97693.0,97692.0,6.68e-05]
[1738710219659,0.364934,97685.0,97684.0,0.08173315]
[1738710219815,0.79671906,97685.0,97684.0,0.08187397]
[1738710220208,0.79671906,97685.0,97684.0,0.00014082]
[1738710220408,0.89921378,97685.0,97684.0,0.00014082]
[1738710221541,0.90221378,97685.0,97684.0,0.00014082]
[1738710221910,0.91121378,97685.0,97684.0,0.00114082]
[1738710222082,0.93421378,97685.0,97684.0,8.2e-07]
[1738710222284,0.303572,97674.0,97673.0,0.08173315]
[1738710222618,0.49033706,97674.0,97673.0,0.06172649]
[1738710222825,0.49033706,97674.0,97673.0,0.00046934]
[1738710223032,0.49033706,97674.0,97673.0,3.4e-07]
[1738710223255,0.49033706,97674.0,97642.0,0.08173315]
[1738710223463,0.40599006,97653.0,97642.0,0.08173315]
[1738710224316,0.15362,97643.0,97642.0,0.08173315]
[1738710224504,0.25600506,97643.0,97642.0,0.08173315]
[1738710224896,0.25600506,97643.0,97632.0,0.08173315]
[1738710224897,0.153636,97633.0,97632.0,0.08173315]
[1738710225101,0.25602106,97633.0,97632.0,0.08173315]
[1738710225302,0.153644,97628.0,97627.0,0.01]
[1738710225623,0.153647,97626.0,97625.0,0.0101068]
[1738710225753,0.25603206,97626.0,97625.0,0.00017897]
[1738710225960,0.10238506,97626.0,97625.0,0.00017897]
[1738710226157,0.01131346,97653.0,97625.0,0.00017897]
[1738710226158,0.153636,97633.0,97632.0,0.01]
[1738710226369,0.25602106,97633.0,97632.0,0.01]
[1738710226565,0.10238506,97633.0,97632.0,0.01]
[1738710227003,0.10238506,97633.0,97632.0,0.011]
[1738710227353,0.204802,97655.0,97644.0,0.01]
[1738710227568,0.153608,97651.0,97644.0,0.02]
[1738710227815,0.10238506,97650.0,97644.0,0.02]
[1738710228017,0.10238506,97650.0,97645.0,0.01]
[1738710228424,0.10238506,97650.0,97649.0,0.01]
[1738710228994,0.10438506,97650.0,97649.0,0.01]
[1738710229181,0.002,97650.0,97649.0,0.173611]
[1738710229387,0.153599,97657.0,97654.0,0.01]
[1738710229584,0.10238506,97656.0,97654.0,0.01]
[1738710230957,0.10338506,97656.0,97654.0,0.01]
[1738710231599,0.10638506,97656.0,97654.0,0.01]
[1738710231799,0.004,97656.0,97654.0,0.01]
[1738710232001,0.004,97656.0,97655.0,0.02]
[1738710232757,0.004,97656.0,97655.0,0.1497]
[1738710232973,0.01152208,97687.0,97655.0,0.42631372]
[1738710233113,0.11390714,97687.0,97686.0,0.01]
[1738710233648,0.153564,97679.0,97678.0,0.01]
[1738710233858,0.10238506,97679.0,97658.0,0.08173315]
[1738710234060,0.153595,97659.0,97658.0,0.08173315]
[1738710234257,0.25598006,97659.0,97658.0,0.08173315]
[1738710234714,0.1536,97656.0,97655.0,0.0505]
[1738710234826,0.32254227,97656.0,97655.0,0.0495]
[1738710235022,0.153608,97651.0,97650.0,0.01]
[1738710235240,0.153623,97641.0,97640.0,0.0595]
[1738710235438,0.25600806,97641.0,97640.0,0.01007217]
[1738710235683,0.25600806,97641.0,97640.0,7.217e-05]
[1738710235684,0.32257407,97641.0,97640.0,7.217e-05]
[1738710237183,0.25600806,97641.0,97640.0,7.217e-05]
[1738710237381,0.10238506,97641.0,97640.0,7.217e-05]
[1738710238208,0.204779,97667.0,97640.0,7.217e-05]
[1738710238209,0.2,97697.0,97645.0,0.01]
[1738710238566,0.09125356,97678.0,97657.0,0.01]
[1738710238769,0.153585,97666.0,97657.0,0.163598]
[1738710238962,0.10238506,97665.0,97657.0,0.01]
[1738710239106,0.10238506,97665.0,97663.0,0.01]
[1738710239310,0.153587,97664.0,97660.0,0.01]
[1738710239509,0.25597506,97663.0,97660.0,0.01]
[1738710239715,0.25597506,97663.0,97662.0,0.01]
[1738710239885,0.153603,97654.0,97653.0,0.01]
[1738710240090,0.25598806,97654.0,97653.0,0.01]
[1738710240904,0.10238506,97654.0,97653.0,0.01]
[1738710241106,0.10238506,97654.0,97653.0,0.011]
[1738710241308,0.30718637,97654.0,97653.0,0.011]
[1738710241609,0.63658637,97654.0,97653.0,0.011]
[1738710241815,0.63658637,97654.0,97653.0,0.001]
[1738710242076,0.63658637,97654.0,97653.0,0.002]
[1738710242413,0.63658637,97654.0,97653.0,0.001]
[1738710243578,0.79785321,97654.0,97653.0,0.001]
[1738710243916,0.82085321,97654.0,97653.0,1e-06]
[1738710244366,0.90129693,97654.0,97653.0,1e-06]
[1738710244562,0.90129693,97654.0,97640.0,7.217e-05]
[1738710244780,0.42900806,97641.0,97640.0,7.217e-05]
[1738710244971,0.42900806,97641.0,97632.0,0.0001525]
[1738710244972,0.66616506,97641.0,97632.0,0.0001525]
[1738710245217,0.66616506,97641.0,97622.0,0.08173315]
[1738710245218,0.15,97623.0,97613.0,0.00022428]
[1738710245417,0.40605106,97614.0,97613.0,0.00029643]
[1738710246056,0.27511478,97614.0,97613.0,0.00029643]
[1738710246591,0.27711478,97614.0,97613.0,0.00029643]
[1738710246792,0.37874286,97614.0,97613.0,0.00011323]
[1738710247196,0.27711478,97614.0,97613.0,0.00011323]
[1738710247599,0.27811478,97614.0,97613.0,0.00011323]
[1738710248211,0.12444878,97614.0,97613.0,0.00011323]
[1738710248452,0.28011478,97614.0,97613.0,0.00011323]
[1738710248861,0.28011478,97614.0,97613.0,0.01011323]
[1738710249201,0.27511478,97614.0,97613.0,0.01011323]
[1738710249408,0.27511478,97614.0,97613.0,0.01211323]
[1738710249526,0.3776095,97614.0,97613.0,0.01111323]
[1738710249734,0.3776095,97614.0,97613.0,0.01011323]
[1738710249938,0.3776095,97614.0,97613.0,0.01211323]
[1738710250152,0.3776095,97614.0,97613.0,0.01111323]
[1738710250560,0.27511478,97614.0,97613.0,0.01011323]
[1738710250929,0.01906372,97614.0,97613.0,0.02011323]
[1738710251098,0.01906372,97614.0,97613.0,0.06521323]
[1738710251998,0.01906372,97614.0,97613.0,0.06621323]
[1738710252325,0.01906372,97614.0,97613.0,0.06521323]
[1738710252545,0.01906372,97614.0,97613.0,0.05621323]
[1738710252747,0.12144878,97614.0,97613.0,0.00211323]
[1738710252966,0.16944856,97614.0,97613.0,0.00111323]
[1738710253144,0.15038484,97614.0,97613.0,0.00111323]
[1738710253298,0.15038484,97614.0,97613.0,0.00211323]
[1738710253498,0.15038484,97614.0,97613.0,0.00111323]
[1738710253707,0.15038484,97614.0,97613.0,0.00011323]
[1738710253914,0.15138484,97614.0,97613.0,0.00011323]
[1738710255098,0.30505084,97614.0,97613.0,0.00011323]
[1738710255299,0.45405084,97614.0,97613.0,0.00011323]
[1738710255502,0.25805106,97614.0,97613.0,0.00011323]
[1738710255707,0.27711401,97614.0,97613.0,0.00011323]
[1738710256795,0.25805106,97614.0,97613.0,0.00011323]
[1738710257352,0.40805106,97614.0,97613.0,0.00011323]
[1738710257782,0.49095164,97614.0,97613.0,0.00011323]
[1738710257939,0.82035164,97614.0,97613.0,0.00011323]
[1738710258140,0.88173164,97614.0,97613.0,0.00011323]
[1738710258564,0.91350826,97614.0,97613.0,0.00011323]
[1738710258965,0.93650826,97614.0,97613.0,0.00011323]
[1738710259372,0.91350826,97614.0,97613.0,0.00011323]
[1738710259587,0.79883106,97614.0,97613.0,0.00011323]
[1738710259783,0.73745106,97614.0,97613.0,0.00011323]
[1738710260114,0.73545106,97614.0,97613.0,0.00011323]
[1738710260277,0.73745106,97614.0,97613.0,0.00011323]
[1738710260617,0.3314,97614.0,97613.0,0.04971323]
[1738710261206,0.42265356,97614.0,97613.0,0.04971323]
[1738710262021,0.42265356,97614.0,97613.0,0.05971323]
[1738710262425,0.42287806,97614.0,97613.0,0.21338123]
[1738710262623,0.42287806,97614.0,97613.0,0.22338123]
[1738710262829,0.0022245,97614.0,97613.0,0.22338123]
[1738710263180,0.09125356,97626.0,97625.0,0.02]
[1738710263456,0.09125356,97626.0,97625.0,0.323949]
[1738710264016,0.09125356,97626.0,97625.0,0.42633406]
[1738710264214,0.00912536,97677.0,97658.0,0.204796]
[1738710264420,0.05696629,97686.0,97657.0,0.01]
[1738710264421,0.153586,97665.0,97657.0,0.01]
[1738710264616,0.11774366,97664.0,97657.0,0.01]
[1738710264816,0.11774366,97664.0,97631.0,0.08173315]
[1738710264817,0.153623,97641.0,97640.0,0.01]
[1738710265004,0.153638,97632.0,97631.0,0.08173315]
[1738710265214,0.25602306,97632.0,97631.0,0.09173315]
[1738710265424,0.153642,97629.0,97628.0,0.01]
[1738710265641,0.204859,97628.0,97613.0,4.108e-05]
[1738710265935,0.153647,97626.0,97625.0,0.001]
[1738710266281,0.25603206,97626.0,97625.0,0.001]
[1738710266596,0.15366,97619.0,97616.0,0.01]
[1738710266732,0.10238506,97618.0,97616.0,0.01]
[1738710266932,0.10238506,97618.0,97614.0,7.215e-05]
[1738710267135,0.153664,97615.0,97614.0,0.01007215]
[1738710267340,0.10238506,97615.0,97614.0,0.01007215]
[1738710267931,0.01091997,97632.0,97614.0,0.01007215]
[1738710267932,0.15,97639.0,97617.0,0.01]
[1738710268135,0.10238506,97638.0,97636.0,0.01]
[1738710268860,0.10238506,97638.0,97628.0,0.01]
[1738710269101,0.153657,97620.0,97614.0,0.01007215]
[1738710269351,0.30363,97637.0,97636.0,0.001]
[1738710269577,0.40601506,97637.0,97636.0,0.001]
[1738710269832,0.25238506,97637.0,97623.0,0.01]
[1738710269948,0.153649,97625.0,97623.0,0.01]
[1738710270150,0.10238506,97624.0,97623.0,0.01]
[1738710270621,0.15,97643.0,97630.0,0.01]
[1738710270811,0.15363,97637.0,97631.0,0.01]
[1738710271009,0.25238506,97636.0,97631.0,0.01]
[1738710271212,0.25238506,97636.0,97619.0,0.204877]
[1738710271213,0.3294,97669.0,97644.0,0.01]
[1738710271434,0.20479,97661.0,97647.0,0.01]
[1738710271716,0.03295069,97668.0,97650.0,0.01]
[1738710271717,0.35842,97651.0,97650.0,0.01]
[1738710272004,0.25599306,97651.0,97650.0,0.01]
[1738710272631,0.10238506,97651.0,97650.0,0.01]
[1738710272760,0.20474,97685.0,97658.0,0.01]
[1738710272961,0.153586,97666.0,97658.0,0.01]
[1738710273207,0.10238506,97665.0,97660.0,0.01]
[1738710273557,0.10238506,97665.0,97645.0,0.08173315]
[1738710273558,0.00014074,97669.0,97664.0,0.01]
[1738710273755,0.00014074,97669.0,97668.0,0.163581]
[1738710273979,0.153586,97665.0,97664.0,0.01]
[1738710274344,0.00014074,97669.0,97668.0,0.01]
[1738710274455,0.1025258,97669.0,97668.0,0.01]
[1738710274815,0.00014074,97669.0,97668.0,0.01]
[1738710275018,0.00014074,97669.0,97668.0,0.163581]
[1738710275246,0.00014074,97669.0,97668.0,0.173581]
[1738710275454,0.00014074,97669.0,97668.0,0.249181]
[1738710275692,0.00014074,97669.0,97668.0,0.295481]
[1738710275896,4.764e-05,97673.0,97672.0,0.173575]
[1738710276764,4.764e-05,97673.0,97672.0,0.17480348]
[1738710276930,4.764e-05,97673.0,97672.0,0.30018854]
[1738710277129,4.764e-05,97673.0,97672.0,0.29896006]
[1738710277509,0.09142182,97703.0,97702.0,0.163528]
[1738710277710,0.09189138,97703.0,97702.0,0.163528]
[1738710277839,0.09189138,97703.0,97702.0,0.239128]
[1738710278043,0.09189138,97703.0,97702.0,0.295428]
[1738710278448,0.0001383,97767.0,97732.0,0.16348]
[1738710278669,0.00024766,97733.0,97732.0,0.52860758]
[1738710278823,0.00024766,97733.0,97732.0,0.55038]
[1738710279521,0.00024766,97733.0,97732.0,0.37738]
[1738710279689,0.00024766,97733.0,97732.0,0.35738]
[1738710280037,0.00024766,97733.0,97732.0,0.37738]
[1738710280224,0.00024766,97733.0,97732.0,0.36738]
[1738710280637,0.00024766,97733.0,97732.0,0.37738]
[1738710280779,0.00024766,97733.0,97732.0,0.36738]
[1738710281175,0.00024766,97733.0,97732.0,0.37738]
[1738710281379,0.00024766,97733.0,97732.0,0.36738]
[1738710281675,0.00024766,97733.0,97732.0,0.37838]
[1738710282422,0.00024766,97733.0,97732.0,0.37938]
[1738710282822,0.00024766,97733.0,97732.0,0.37738]
[1738710284780,0.00024766,97733.0,97732.0,0.37838]
[1738710285050,0.00024766,97733.0,97732.0,0.37738]
[1738710285459,0.00024766,97733.0,97732.0,0.37838]
[1738710285615,0.00024766,97733.0,97732.0,0.37738]
[1738710286432,0.00024766,97733.0,97732.0,0.37838]
[1738710287856,0.00024766,97733.0,97732.0,0.37738]
[1738710288059,0.00024766,97733.0,97732.0,0.37838]
[1738710288461,0.00024766,97733.0,97732.0,0.37738]
[1738710288692,0.00024766,97733.0,97732.0,0.37838]
[1738710289076,0.00024766,97733.0,97732.0,0.37738]
[1738710289280,0.00024766,97733.0,97732.0,0.37838]
[1738710290151,0.15100388,97752.0,97732.0,0.2249]
[1738710290379,0.06138,97789.0,97761.0,0.01]
[1738710290530,0.15,97765.0,97761.0,0.01]
[1738710290735,0.25581606,97764.0,97761.0,0.01]
[1738710290940,0.153432,97763.0,97761.0,0.01]
[1738710291139,0.10238506,97762.0,97761.0,0.01]
[1738710291760,0.004,97765.0,97762.0,0.01]
[1738710291955,0.00027906,97767.0,97766.0,0.163427]
[1738710292129,0.00027906,97767.0,97766.0,0.173427]
[1738710293365,0.10266412,97767.0,97759.0,0.02]
[1738710293587,0.10266412,97767.0,97754.0,0.2139]
[1738710293588,0.10238506,97766.0,97754.0,0.2139]
[1738710293722,0.153443,97756.0,97754.0,0.2039]
[1738710293925,0.10238506,97755.0,97754.0,0.2039]
[1738710295075,0.10238506,97755.0,97754.0,0.2049]
[1738710297670,0.25582906,97755.0,97754.0,0.2049]
[1738710297817,0.26701588,97755.0,97754.0,0.2049]
[1738710298418,0.26712268,97755.0,97754.0,0.2049]
[1738710298826,0.43674772,97755.0,97754.0,0.2049]
[1738710299028,0.41712268,97755.0,97754.0,0.2049]
[1738710301554,0.41712268,97755.0,97754.0,0.2039]
[1738710301941,0.74752268,97755.0,97754.0,0.2039]
[1738710303150,0.80890268,97755.0,97754.0,0.2039]
[1738710303531,0.9123974,97755.0,97754.0,0.2039]
[1738710303889,0.9353974,97755.0,97754.0,0.2039]
[1738710305009,0.9343974,97755.0,97754.0,0.2039]
[1738710305225,0.9333974,97755.0,97754.0,0.2039]
[1738710305378,0.86350619,97755.0,97754.0,0.2039]
[1738710305574,0.83390268,97755.0,97754.0,0.2039]
[1738710305889,0.83090268,97755.0,97754.0,0.2039]
[1738710306298,0.87454371,97755.0,97754.0,0.2039]
[1738710307933,0.89653238,97755.0,97754.0,0.2039]
[1738710308276,0.364856,97735.0,97734.0,0.08173315]
[1738710308481,0.79664106,97735.0,97734.0,0.08173315]
[1738710308711,0.81964106,97735.0,97734.0,0.08173315]
[1738710308891,0.303496,97722.0,97721.0,0.08173315]
[1738710309090,0.40588106,97722.0,97721.0,0.08173315]
[1738710309337,0.46726106,97722.0,97721.0,0.08173315]
[1738710309766,0.30351,97713.0,97711.0,0.08173315]
[1738710309968,0.81271766,97713.0,97712.0,0.00036514]
[1738710310170,0.73529506,97713.0,97712.0,0.00036514]
[1738710310995,0.43178506,97713.0,97712.0,0.00036514]
[1738710311203,0.204657,97725.0,97712.0,0.01036514]
[1738710311410,0.10238506,97734.0,97733.0,0.163479]
[1738710311612,0.003,97735.0,97734.0,0.163477]
[1738710311965,0.001,97735.0,97734.0,0.163477]
[1738710312174,0.153466,97741.0,97740.0,0.01]
[1738710312383,0.15349,97726.0,97725.0,0.01]
[1738710312720,0.10238506,97726.0,97725.0,0.01]
[1738710312832,0.25587506,97726.0,97725.0,0.01]
[1738710313396,0.153495,97723.0,97722.0,0.01]
[1738710313653,0.25588006,97723.0,97722.0,0.01]
[1738710313854,0.10238506,97723.0,97722.0,0.01]
[1738710314389,0.534008,97748.0,97742.0,0.01]
[1738710314633,0.10238506,97743.0,97742.0,0.01]
[1738710314812,0.15,97742.0,97729.0,0.01]
[1738710315020,0.30686044,97743.0,97723.0,0.01]
[1738710315021,0.153479,97733.0,97730.0,0.01]
[1738710315214,0.10238506,97732.0,97730.0,0.01]
[1738710315462,0.15,97740.0,97731.0,0.09173315]
[1738710315655,0.10238506,97739.0,97738.0,0.01]
[1738710315855,0.25238506,97739.0,97738.0,0.01]
[1738710316437,0.3403207,97748.0,97738.0,0.163471]
[1738710316756,0.25238506,97747.0,97746.0,0.01]
[1738710316960,0.25238506,97747.0,97731.0,0.08187401]
[1738710316961,0.15,97745.0,97731.0,0.08187401]
[1738710317186,0.303469,97739.0,97738.0,0.002]
[1738710317329,0.40585406,97739.0,97738.0,0.001]
[1738710317705,0.153479,97733.0,97732.0,0.08173315]
[1738710317831,0.34351467,97733.0,97732.0,0.08173315]
[1738710318459,0.25586406,97733.0,97732.0,0.08173315]
[1738710318656,0.153469,97739.0,97738.0,0.01]
[1738710318858,0.25585406,97739.0,97738.0,0.011]
[1738710319061,0.40585406,97739.0,97738.0,0.01]
[1738710319320,0.25238506,97739.0,97738.0,0.01]
[1738710319535,0.154457,97747.0,97746.0,0.01]
[1738710319695,0.40584206,97747.0,97746.0,0.01]
[1738710321075,0.40684206,97747.0,97746.0,0.01]
[1738710321297,0.25338506,97747.0,97746.0,0.01]
[1738710322290,0.40984206,97747.0,97746.0,0.01]
[1738710322691,0.25238506,97747.0,97746.0,0.01]
[1738710322896,0.25238506,97747.0,97746.0,0.011]
[1738710323217,0.25238506,97747.0,97746.0,0.012]
[1738710323417,0.25238506,97747.0,97746.0,0.011]
[1738710323824,0.25238506,97747.0,97746.0,0.012]
[1738710325203,0.0001068,97754.0,97753.0,0.01]
[1738710325404,0.25593786,97754.0,97753.0,0.01]
[1738710325520,0.25249186,97754.0,97753.0,0.01]
[1738710325713,0.43119773,97754.0,97753.0,0.01]
[1738710326366,0.43319773,97754.0,97753.0,0.01]
[1738710326742,0.44433528,97754.0,97753.0,0.01]
[1738710327027,0.44433528,97754.0,97753.0,0.011]
[1738710327251,0.41707541,97754.0,97753.0,0.01]
[1738710327649,0.25249186,97754.0,97753.0,0.01]
[1738710327855,0.0001068,97754.0,97753.0,0.163447]
[1738710328728,0.0001068,97754.0,97753.0,0.173447]
[1738710328898,0.0021068,97754.0,97753.0,0.173447]
[1738710329113,0.0021068,97754.0,97753.0,0.01]
[1738710329317,0.0001068,97754.0,97753.0,0.173447]
[1738710329922,0.0001068,97754.0,97753.0,0.1746744]
[1738710330086,0.0001068,97754.0,97753.0,0.1756744]
[1738710330529,0.0001068,97754.0,97753.0,0.174447]
[1738710330883,0.0001068,97754.0,97753.0,0.164447]
[1738710331015,0.0001068,97754.0,97753.0,0.174447]
[1738710331647,0.0001068,97754.0,97753.0,0.17830545]
[1738710332447,0.0001068,97754.0,97753.0,0.30703285]
[1738710332731,0.0001068,97754.0,97753.0,0.30480545]
[1738710332841,0.0001068,97754.0,97753.0,0.30580545]
[1738710333041,0.0001068,97754.0,97753.0,0.30680545]
[1738710333289,0.0001068,97754.0,97753.0,0.30480545]
[1738710333684,0.0001068,97754.0,97753.0,0.43219051]
[1738710333864,0.0001068,97754.0,97753.0,0.58119051]
[1738710334063,0.0001068,97754.0,97753.0,0.60172849]
[1738710334265,0.0001383,97767.0,97755.0,0.01]
[1738710334463,0.0001383,97767.0,97766.0,0.323527]
[1738710334732,0.0001383,97767.0,97766.0,0.44645004]
[1738710335133,0.0001383,97767.0,97766.0,0.45014795]
[1738710335971,0.00027906,97767.0,97766.0,0.42960997]
[1738710336536,0.00027906,97767.0,97766.0,0.43060997]
[1738710336714,0.00027906,97767.0,97766.0,0.46327844]
[1738710336925,0.00038586,97767.0,97766.0,0.44274046]
[1738710337113,0.00038586,97767.0,97766.0,0.3173554]
[1738710337311,0.00038586,97767.0,97766.0,0.30622491]
[1738710339119,0.00038586,97767.0,97766.0,0.43060997]
[1738710340128,0.00038586,97767.0,97766.0,0.42960997]
[1738710340333,0.00038586,97767.0,97766.0,0.58060997]
[1738710340484,0.00038586,97767.0,97766.0,0.59060997]
[1738710340839,0.00038586,97767.0,97766.0,0.62057368]
[1738710341003,0.00038586,97767.0,97766.0,0.58060997]
[1738710341206,0.00038586,97767.0,97766.0,0.58160997]
[1738710341526,0.00038586,97767.0,97766.0,0.58060997]
[1738710341937,0.00038586,97767.0,97766.0,0.60085678]
[1738710342437,0.00118423,97780.0,97779.0,0.02]
[1738710342640,0.00118423,97780.0,97779.0,0.37419206]
[1738710342980,0.00118423,97780.0,97779.0,0.40648993]
[1738710343182,0.00118423,97780.0,97779.0,0.45158993]
[1738710344019,0.00118423,97780.0,97779.0,0.45258993]
[1738710344227,0.00118423,97780.0,97779.0,0.40095946]
[1738710344422,0.00118423,97780.0,97779.0,0.30719461]
[1738710344688,0.00118423,97780.0,97779.0,0.18669461]
[1738710344860,0.00118423,97780.0,97779.0,0.03328761]
[1738710345073,0.00118423,97780.0,97779.0,0.03428761]
[1738710345272,0.00118423,97780.0,97779.0,0.18769461]
[1738710345436,0.00118423,97780.0,97779.0,0.19769461]
[1738710345639,0.00118423,97780.0,97779.0,0.1780744]
[1738710345988,0.00118423,97780.0,97779.0,0.1790744]
[1738710346626,0.00118423,97780.0,97779.0,0.1780744]
[1738710346753,0.00118423,97780.0,97779.0,0.1790744]
[1738710346973,0.00118423,97780.0,97779.0,0.1780744]
[1738710347352,0.00118423,97780.0,97779.0,0.1690744]
[1738710347756,0.00118423,97780.0,97779.0,0.1790744]
[1738710347962,0.00118423,97780.0,97779.0,0.1690744]
[1738710348664,0.00129103,97780.0,97779.0,0.1690744]
[1738710348872,0.00129103,97780.0,97779.0,0.18011698]
[1738710349093,0.00129103,97780.0,97779.0,0.17011698]
[1738710349295,0.00129103,97780.0,97779.0,0.18011698]
[1738710349827,0.00129103,97780.0,97779.0,0.17011698]
[1738710350782,0.00129103,97780.0,97779.0,0.18011698]
[1738710351441,0.00129103,97780.0,97779.0,0.17011698]
[1738710352402,0.00129103,97780.0,97779.0,0.01670998]
[1738710352609,0.00129103,97780.0,97779.0,0.18011698]
[1738710354313,0.00129103,97780.0,97779.0,0.18134411]
[1738710354617,0.00129103,97780.0,97779.0,0.18011698]
[1738710356716,0.00129103,97780.0,97779.0,0.18134402]
[1738710357508,0.00129103,97780.0,97779.0,0.18011698]
[1738710358273,0.00129103,97780.0,97779.0,0.18134402]
[1738710360182,0.00129103,97780.0,97779.0,0.38615336]
[1738710360406,0.00129103,97780.0,97779.0,0.38492632]
[1738710361341,0.00129103,97780.0,97779.0,0.38392632]
[1738710361541,0.00129103,97780.0,97779.0,0.38492632]
[1738710361842,0.00129103,97780.0,97779.0,0.38392632]
[1738710362249,0.00129103,97780.0,97779.0,0.38492632]
[1738710362465,3e-08,97780.0,97779.0,0.53392632]
[1738710362615,3e-08,97780.0,97779.0,0.59072632]
[1738710362979,3e-08,97780.0,97779.0,0.58072632]
[1738710363163,3e-08,97780.0,97779.0,0.59072632]
[1738710363374,3e-08,97780.0,97779.0,0.59172632]
[1738710363994,3e-08,97780.0,97779.0,0.58972632]
[1738710364603,3e-08,97780.0,97779.0,0.59072632]
[1738710365403,3e-08,97780.0,97779.0,0.59172632]
[1738710366465,3e-08,97780.0,97779.0,0.59072632]
[1738710366858,3e-08,97780.0,97779.0,0.59172632]
[1738710367205,3e-08,97780.0,97779.0,0.59072632]
[1738710367600,3e-08,97780.0,97779.0,0.58972632]
[1738710368007,3e-08,97780.0,97779.0,0.59072632]
[1738710368312,3e-08,97780.0,97779.0,0.58972632]
[1738710368510,3e-08,97780.0,97779.0,0.59072632]
[1738710369338,3e-08,97780.0,97779.0,0.59172632]
[1738710380603,3e-08,97780.0,97779.0,0.6253465]
[1738710380826,0.153315,97838.0,97836.0,0.01]
[1738710380993,0.10238506,97837.0,97836.0,0.01]
[1738710381347,0.01139929,97839.0,97838.0,0.163314]
[1738710381555,0.01139929,97839.0,97838.0,0.173314]
[1738710381556,0.00046939,97839.0,97838.0,0.173314]
[1738710382047,0.00046939,97839.0,97838.0,0.163314]
[1738710382386,0.00046939,97839.0,97838.0,0.17454041]
[1738710382593,0.00046939,97839.0,97838.0,0.27692547]
[1738710382851,0.00046939,97839.0,97838.0,0.173314]
[1738710383004,0.00037829,97839.0,97838.0,0.173314]
[1738710383209,0.00037829,97839.0,97838.0,0.18403476]
[1738710383413,0.00037829,97839.0,97838.0,0.173314]
[1738710384247,0.00048509,97839.0,97838.0,0.174314]
[1738710384647,0.00048509,97839.0,97838.0,0.173314]
[1738710385318,0.00048509,97839.0,97838.0,0.174314]
[1738710385791,0.00048509,97839.0,97838.0,0.27669906]
[1738710386552,0.00048509,97839.0,97838.0,0.29969906]
[1738710386750,0.00048509,97839.0,97838.0,0.44969906]
[1738710386954,0.00048509,97839.0,97838.0,0.48331924]
[1738710387907,0.00048509,97839.0,97838.0,0.44969906]
[1738710388123,0.00048509,97839.0,97838.0,0.48231924]
[1738710388686,0.00048509,97839.0,97838.0,0.50268543]
[1738710389005,0.00048509,97839.0,97838.0,0.50368543]
[1738710389395,0.00048509,97839.0,97838.0,0.50861033]
[1738710390200,0.00048509,97839.0,97838.0,0.51957701]
[1738710390406,0.00048509,97839.0,97838.0,0.52368109]
[1738710390958,0.0001068,97852.0,97851.0,0.173294]
[1738710391170,0.00024758,97852.0,97851.0,0.33352525]
[1738710391390,0.00024758,97852.0,97851.0,0.34132046]
[1738710391629,0.00024758,97852.0,97851.0,0.30770028]
[1738710392748,0.00024758,97852.0,97851.0,0.31854259]
[1738710392937,0.00024758,97852.0,97851.0,0.46954259]
[1738710393499,0.00024758,97852.0,97851.0,0.47054259]
[1738710393707,0.00024758,97852.0,97851.0,0.46854259]
[1738710396278,0.00024758,97852.0,97851.0,0.46954259]
[1738710396812,0.00024758,97852.0,97851.0,0.46854259]
[1738710397023,0.00024758,97852.0,97851.0,0.46954259]
[1738710397313,0.00024758,97852.0,97851.0,0.46854259]
[1738710397677,0.00024758,97852.0,97851.0,0.46954259]
[1738710399087,0.00024758,97852.0,97851.0,0.46854259]
[1738710399433,0.00024758,97852.0,97851.0,0.46954259]
[1738710399986,0.00024758,97852.0,97851.0,0.47054259]
[1738710400406,0.00024758,97852.0,97851.0,0.46854259]
[1738710400647,0.00024758,97852.0,97851.0,0.44654259]
[1738710400830,0.00024758,97852.0,97851.0,0.44554259]
[1738710402525,0.00024758,97852.0,97851.0,0.44654259]
[1738710406360,0.00024758,97852.0,97851.0,0.34415753]
[1738710409424,0.00024758,97852.0,97851.0,0.44654259]
[1738710415855,0.00024758,97852.0,97851.0,0.46954259]
[1738710419269,0.00024758,97852.0,97851.0,0.52954259]
[1738710428601,5.8e-07,97852.0,97851.0,0.52954259]
[1738710428758,5.8e-07,97852.0,97851.0,0.53954259]
[1738710430463,5.8e-07,97852.0,97851.0,0.52954259]
[1738710431127,0.00010728,97852.0,97851.0,0.52954259]